bitfinex/quotes_ETHUSD_20250314
["timestamp","ask_amount","ask_price","bid_price","bid_amount"]
[1741970158914,5.506,1928.8,1928.6,5.18496]
[1741970159111,10.69059,1928.8,1928.5,5.18537]
[1741970159347,5.18484,1928.7,1928.4,5.73563]
[1741970159531,5.18484,1928.7,1928.3,10.68588]
[1741970160137,5.18484,1928.7,1928.3,15.87163]
[1741970160338,10.69075,1928.8,1928.3,5.5]
[1741970160533,5.18496,1928.7,1928.3,10.68582]
[1741970160744,5.18511,1928.6,1928.3,5.5]
[1741970160937,6.00421,1928.6,1928.3,5.5]
[1741970161315,0.8191,1928.6,1928.3,10.6859]
[1741970161711,0.8191,1928.6,1928.3,15.87164]
[1741970161914,0.8191,1928.6,1928.3,10.68578]
[1741970162118,0.8191,1928.6,1928.3,11.754358]
[1741970162341,0.8191,1928.6,1928.3,16.940088]
[1741970162538,10.68377,1928.8,1928.4,5.1856]
[1741970162931,10.68377,1928.8,1928.4,5.18553]
[1741970163139,10.68377,1928.8,1928.4,10.37102]
[1741970163349,10.68377,1928.8,1928.4,6.8794498]
[1741970163567,0.01,1928.9,1928.5,5.55185363]
[1741970163863,0.01,1928.9,1928.8,5.18457]
[1741970164522,0.01,1928.9,1928.8,11.55751177]
[1741970164848,0.01,1928.9,1928.8,11.50567]
[1741970165020,0.01,1928.9,1928.8,13.17472]
[1741970167225,0.01,1928.9,1928.8,20.22012732]
[1741970167433,1e-05,1928.9,1928.8,20.22012732]
[1741970170225,1e-05,1928.9,1928.8,13.56311187]
[1741970172323,0.7991,1930.0,1929.2,5.18349]
[1741970172627,0.7991,1930.0,1929.7,5.18196]
[1741970172926,0.7991,1930.0,1929.8,5.18185]
[1741970173123,10.65386,1930.2,1929.5,11.49355]
[1741970173124,5.473,1930.2,1929.5,11.49355]
[1741970173348,6.2836,1930.2,1929.7,5.18202]
[1741970173558,12.09299,1930.2,1929.7,10.36395]
[1741970173742,17.27394,1930.2,1929.7,10.36395]
[1741970173949,12.09291,1930.2,1929.8,5.18177]
[1741970174150,12.09291,1930.2,1929.7,5.18193]
[1741970174458,5.18117,1930.1,1929.7,5.18193]
[1741970174655,11.46455,1930.2,1929.8,5.18168]
[1741970174839,0.8106,1930.2,1929.9,10.3629]
[1741970175039,0.8106,1930.4,1930.1,5.18101]
[1741970175358,0.8106,1930.4,1930.1,5.18093]
[1741970175532,0.8106,1930.4,1930.0,5.5]
[1741970175726,0.8106,1930.4,1930.0,10.68128]
[1741970175931,6.589954,1930.4,1930.0,5.5]
[1741970176462,6.590114,1930.4,1930.0,10.6813]
[1741970176836,6.590114,1930.4,1930.1,5.18104]
[1741970176837,1.409674,1930.4,1930.1,5.18104]
[1741970177041,0.8106,1930.4,1930.0,10.6813]
[1741970177244,5.9911,1930.4,1930.0,5.5]
[1741970177431,5.1806,1930.3,1930.0,5.5]
[1741970177833,5.9911,1930.4,1930.0,5.5]
[1741970177834,11.17152,1930.4,1930.0,10.68133]
[1741970178039,5.18065,1930.3,1930.0,5.5]
[1741970178328,0.8106,1930.4,1930.0,5.5]
[1741970178562,1.43866,1930.4,1930.1,5.1809]
[1741970178863,0.8106,1930.4,1930.1,5.1809]
[1741970179369,0.8106,1930.4,1930.2,5.18056]
[1741970179657,5.47,1930.5,1930.2,5.18056]
[1741970180041,10.65012,1930.5,1930.1,10.36182]
[1741970180242,5.47,1930.5,1930.0,10.68131]
[1741970180430,11.794546,1930.5,1930.1,5.1809]
[1741970180632,5.18028,1930.4,1930.0,10.6813]
[1741970181060,5.18054,1930.3,1930.0,10.6813]
[1741970181559,11.794446,1930.5,1930.0,10.6813]
[1741970181560,5.18035,1930.4,1930.0,10.6813]
[1741970182344,12.0582996,1930.4,1930.0,10.6813]
[1741970182534,5.1809,1930.2,1930.0,5.5]
[1741970182733,11.14642,1930.3,1930.0,5.5]
[1741970182933,0.7849,1930.3,1930.0,10.6813]
[1741970183388,5.96559,1930.3,1930.0,5.5]
[1741970183551,0.7849,1930.3,1930.0,10.68124]
[1741970183962,0.7849,1930.3,1930.0,5.5]
[1741970184178,5.463,1930.5,1930.1,5.73082]
[1741970184485,5.463,1930.5,1930.1,5.18082]
[1741970184650,5.463,1930.5,1929.8,5.18177]
[1741970184651,0.7951,1930.9,1930.2,6.308]
[1741970184856,5.1788,1931.0,1930.6,5.17964]
[1741970185655,10.6418,1931.0,1930.6,5.17959]
[1741970185876,11.78549,1931.0,1930.6,5.17959]
[1741970186196,16.96434,1931.0,1930.6,5.17972]
[1741970186356,11.78546,1931.0,1930.6,5.17959]
[1741970186682,5.17938,1930.8,1930.4,5.18016]
[1741970186882,0.7956,1930.7,1930.4,5.18001]
[1741970187089,0.7956,1930.7,1930.5,5.17986]
[1741970187254,0.7956,1931.0,1930.5,1.08778603]
[1741970187460,0.7956,1931.0,1930.3,14.72592732]
[1741970187461,0.7956,1931.0,1930.7,5.17929]
[1741970187785,0.7956,1931.0,1930.8,5.17903]
[1741970187989,5.97435,1931.0,1930.6,5.17959]
[1741970188358,5.97435,1931.0,1930.6,10.35918]
[1741970188558,5.97435,1931.0,1930.6,5.17959]
[1741970188858,7.635827,1931.0,1930.6,5.17959]
[1741970189259,2.457077,1931.0,1930.4,5.5]
[1741970189471,5.17906,1930.9,1930.6,5.17967]
[1741970190355,5.17942,1930.8,1930.4,10.68016]
[1741970190561,5.17942,1930.8,1930.4,15.86028]
[1741970190782,5.17897,1930.9,1930.5,5.17998]
[1741970190979,0.7956,1931.0,1930.7,5.17931]
[1741970191183,5.97428,1931.0,1930.7,5.17931]
[1741970191595,11.15312,1931.0,1930.6,5.17964]
[1741970191799,0.7956,1931.0,1930.7,5.17927]
[1741970191995,0.7956,1931.0,1930.8,5.17917]
[1741970192364,5.1784,1931.1,1930.8,5.17917]
[1741970192566,5.17896,1930.9,1930.6,5.17973]
[1741970192794,10.35806,1930.9,1930.5,10.67997]
[1741970193104,5.17896,1930.9,1930.5,15.85984]
[1741970193284,5.1795,1930.7,1930.5,5.5]
[1741970193484,5.18018,1930.5,1930.1,5.18099]
[1741970193885,5.18018,1930.5,1930.1,10.3619]
[1741970194268,5.18018,1930.5,1930.1,5.18091]
[1741970194469,5.18018,1930.5,1930.1,10.36183]
[1741970194896,5.18018,1930.5,1930.1,5.18091]
[1741970195124,5.17976,1930.6,1930.2,5.18068]
[1741970195400,5.17976,1930.6,1930.2,5.18054]
[1741970195602,5.17976,1930.6,1930.3,5.18053]
[1741970195989,5.1795,1930.7,1930.2,5.1807]
[1741970196192,5.18012,1930.5,1930.1,10.36196]
[1741970196366,10.36033,1930.5,1930.1,5.18093]
[1741970196768,5.18012,1930.5,1930.1,5.18093]
[1741970196992,5.17984,1930.6,1930.2,5.18071]
[1741970197194,10.35975,1930.6,1930.2,5.18071]
[1741970197394,6.2786,1930.8,1930.2,5.18066]
[1741970197611,0.62786,1930.7,1930.2,5.18066]
[1741970197871,0.62786,1930.7,1930.3,5.18053]
[1741970198096,5.17975,1930.6,1930.3,5.18053]
[1741970198484,5.17975,1930.6,1930.2,5.18066]
[1741970198890,5.17982,1930.6,1930.2,5.18077]
[1741970199206,5.17982,1930.6,1930.2,5.18063]
[1741970199396,5.17982,1930.6,1930.3,5.18041]
[1741970199591,5.17982,1930.6,1930.2,10.36131]
[1741970199800,0.62786,1930.7,1930.1,0.05180365]
[1741970199994,6.2786,1930.8,1930.5,5.18]
[1741970200178,0.8176,1930.8,1930.5,5.1799]
[1741970200500,0.8176,1930.8,1930.6,5.17959]
[1741970200703,5.99689,1930.8,1930.4,10.68022]
[1741970200902,5.17975,1930.6,1930.4,5.5]
[1741970201080,5.18,1930.5,1930.4,5.5]
[1741970201285,5.779239,1930.7,1930.4,5.5]
[1741970201503,0.599689,1930.7,1930.4,5.5]
[1741970201702,5.18,1930.6,1930.4,5.5]
[1741970202683,5.779189,1930.7,1930.4,5.5]
[1741970202879,10.958879,1930.7,1930.4,5.5]
[1741970203193,1.0958879,1930.6,1930.4,5.5]
[1741970203395,10.958889,1930.7,1930.3,5.18036]
[1741970203598,10.958889,1930.7,1930.4,5.18026]
[1741970203599,0.599689,1930.7,1930.4,5.18026]
[1741970203779,6.059689,1930.7,1930.4,5.18026]
[1741970204213,11.239189,1930.7,1930.4,5.18026]
[1741970204379,6.059689,1930.7,1930.4,5.18026]
[1741970205204,6.059689,1930.7,1930.4,5.18012]
[1741970205408,11.239259,1930.7,1930.3,10.36092]
[1741970205579,11.239259,1930.7,1930.4,5.18024]
[1741970205783,11.239259,1930.7,1930.4,5.18013]
[1741970205784,6.059689,1930.7,1930.4,5.18013]
[1741970205994,0.8176,1930.8,1930.5,5.17988]
[1741970206189,11.45689,1930.8,1930.4,5.18023]
[1741970206381,11.45689,1930.8,1930.5,5.17999]
[1741970206602,11.45689,1930.8,1930.4,5.18013]
[1741970206803,10.35926,1930.7,1930.3,5.56859468]
[1741970207004,6.843316,1930.7,1930.3,5.56859468]
[1741970207310,12.022966,1930.7,1930.3,5.56851468]
[1741970207479,12.022956,1930.7,1930.3,5.18043]
[1741970207780,6.843316,1930.7,1930.3,10.3608]
[1741970207985,6.843316,1930.7,1930.2,5.18079]
[1741970207986,5.17991,1930.6,1930.2,5.18079]
[1741970208185,6.00677425,1930.6,1930.2,5.18068]
[1741970208387,11.18668425,1930.6,1930.2,5.18068]
[1741970208628,6.00677425,1930.6,1930.2,10.36131]
[1741970208813,0.8176,1930.8,1930.6,5.17964]
[1741970209115,5.89509767,1931.0,1930.6,5.17964]
[1741970209314,11.07400767,1931.0,1930.6,5.17964]
[1741970209484,5.89509767,1931.0,1930.6,5.17964]
[1741970209686,5.17921,1930.8,1930.5,5.17998]
[1741970209882,5.17921,1930.8,1930.4,10.68011]
[1741970210083,5.17948,1930.7,1930.4,10.68011]
[1741970210288,5.17924,1930.8,1930.5,5.17991]
[1741970211188,5.17925,1930.8,1930.5,5.17991]
[1741970211388,5.17897,1930.9,1930.5,10.35968]
[1741970211589,10.35807,1930.9,1930.5,5.1798]
[1741970211789,10.63897,1930.9,1930.5,10.35964]
[1741970212312,10.63893,1930.9,1930.5,6.765954]
[1741970212490,10.63893,1930.9,1930.5,11.945814]
[1741970212690,10.63893,1930.9,1930.5,1.585964]
[1741970212921,5.17936,1930.8,1930.4,15.86016]
[1741970213125,10.35878,1930.8,1930.4,10.68007]
[1741970213307,10.6391,1930.9,1930.4,10.68007]
[1741970213630,5.17921,1930.8,1930.5,5.17989]
[1741970213791,15.81823,1930.9,1930.5,5.17985]
[1741970213994,5.17922,1930.8,1930.5,5.17985]
[1741970214621,10.6391,1930.9,1930.6,5.17959]
[1741970214834,5.17932,1930.8,1930.4,10.68017]
[1741970214997,12.43994098,1930.9,1930.3,0.39595014]
[1741970215198,10.35864,1930.8,1930.4,5.18027]
[1741970215524,5.17929,1930.8,1930.4,5.18027]
[1741970215703,5.17977,1930.6,1930.3,5.18047]
[1741970215904,5.17977,1930.6,1929.8,8.48799293]
[1741970215905,3.30631293,1930.5,1929.9,5.5]
[1741970216104,5.459,1930.4,1930.1,5.18087]
[1741970216724,5.459,1930.4,1930.2,10.36142]
[1741970216901,0.7905,1930.6,1930.0,0.751]
[1741970217110,5.459,1930.7,1930.1,5.18105]
[1741970217428,5.459,1930.7,1930.4,5.18018]
[1741970217661,5.459,1930.7,1930.6,5.17973]
[1741970217995,5.98792,1931.0,1930.6,5.17973]
[1741970218200,11.44692,1931.0,1930.6,5.17973]
[1741970218703,5.17902,1930.9,1930.6,5.17973]
[1741970219528,11.44692,1931.0,1930.6,10.35933]
[1741970219844,0.8092,1931.0,1930.8,5.17905]
[1741970220005,0.8092,1931.0,1930.7,5.17946]
[1741970221233,5.99275,1931.2,1930.8,5.17914]
[1741970221447,11.45175,1931.2,1930.8,6.214987]
[1741970222023,5.17852,1931.1,1930.8,6.214987]
[1741970222449,0.8193,1931.4,1931.1,5.17836]
[1741970222654,5.459,1931.2,1930.8,7.014667]
[1741970222849,10.63714,1931.2,1930.9,5.8802367]
[1741970223050,5.99809,1931.0,1930.7,5.5]
[1741970223227,5.17879,1931.0,1930.6,5.17964]
[1741970223432,5.17868,1931.0,1930.6,5.17973]
[1741970223837,10.3576,1931.0,1930.6,5.17973]
[1741970224043,10.35748,1931.0,1930.6,5.17973]
[1741970224241,10.35748,1931.0,1930.6,6.845681]
[1741970224553,5.17874,1931.0,1930.6,6.845441]
[1741970224851,5.94068,1930.9,1930.6,1.665951]
[1741970225176,11.10953,1931.1,1930.6,5.17949]
[1741970225334,5.931,1931.1,1930.7,5.17927]
[1741970225833,5.931,1931.1,1930.7,5.96207]
[1741970225834,5.93103,1931.1,1930.7,5.96207]
[1741970226030,5.17902,1930.9,1930.5,5.17976]
[1741970226229,5.17905,1930.9,1930.6,5.17971]
[1741970226439,5.17905,1930.9,1930.5,5.17976]
[1741970226640,5.17905,1930.9,1930.5,6.326016]
[1741970226835,10.63669,1931.0,1930.5,6.326016]
[1741970227031,10.63669,1931.0,1930.6,5.17963]
[1741970227239,5.17894,1930.9,1930.6,5.17963]
[1741970227539,10.63669,1931.0,1930.6,10.35924]
[1741970227859,10.63666,1931.0,1930.7,1.035924]
[1741970228079,5.458,1931.0,1930.5,1.146256]
[1741970228259,5.458,1931.0,1930.6,5.17962]
[1741970228260,10.63676,1931.0,1930.6,5.17962]
[1741970228559,10.63676,1931.0,1930.5,6.326246]
[1741970228560,5.458,1931.0,1930.5,6.326246]
[1741970229077,5.458,1931.0,1930.4,5.5]
[1741970229224,9.30194293,1930.9,1930.4,5.5]
[1741970229421,9.30194293,1930.9,1930.2,6.2588]
[1741970229422,3.0,1930.8,1930.2,6.2588]
[1741970229626,5.98773,1930.6,1930.2,10.68067]
[1741970230060,5.98773,1930.6,1930.3,5.18052]
[1741970230225,5.98773,1930.6,1930.2,10.68067]
[1741970230535,5.458,1931.0,1930.8,5.17917]
[1741970230741,10.63676,1931.0,1930.5,10.67987]
[1741970231060,10.63676,1931.0,1930.6,5.17964]
[1741970231568,5.458,1931.0,1930.7,5.17944]
[1741970231854,10.63666,1931.0,1930.6,5.17971]
[1741970232637,5.458,1931.0,1930.5,10.67999]
[1741970232966,5.1791,1930.9,1930.5,10.67985]
[1741970233261,5.1791,1930.9,1930.5,5.5]
[1741970233262,5.17893,1930.9,1930.5,5.5]
[1741970233630,5.17955,1930.7,1930.5,5.5]
[1741970233854,5.95049,1930.8,1930.5,5.5]
[1741970234038,5.17896,1930.9,1930.5,10.67995]
[1741970234359,5.17896,1930.9,1930.5,11.825185]
[1741970234569,5.17896,1930.9,1930.6,5.17962]
[1741970234860,5.458,1931.0,1930.7,5.17936]
[1741970235166,0.8165,1931.7,1930.8,0.7529]
[1741970235470,5.17823,1931.2,1930.8,16.61112]
[1741970235650,5.17823,1931.2,1930.8,18.272232]
[1741970235957,5.17823,1931.2,1930.9,5.17887]
[1741970236780,5.17842,1931.1,1930.8,7.914012]
[1741970236961,0.7939,1931.0,1930.8,5.5]
[1741970237265,0.7939,1931.0,1930.5,5.17991]
[1741970237266,5.17906,1930.9,1930.5,5.17991]
[1741970237470,5.17922,1930.8,1930.5,5.17991]
[1741970237784,5.17959,1930.7,1930.3,10.68054]
[1741970238064,5.17959,1930.7,1930.3,15.86091]
[1741970238065,5.17962,1930.7,1930.3,15.86091]
[1741970238264,5.18009,1930.5,1930.2,6.3107]
[1741970238470,5.18033,1930.4,1930.2,5.5]
[1741970238673,5.18033,1930.4,1930.1,10.68094]
[1741970238843,5.99285,1930.6,1930.1,5.5]
[1741970239043,5.18034,1930.4,1930.1,5.5]
[1741970239556,5.18002,1930.5,1930.1,10.6809]
[1741970240771,10.63836,1930.4,1930.1,5.5]
[1741970241278,5.18055,1930.3,1930.1,5.5]
[1741970241574,5.93581,1930.2,1930.1,5.5]
[1741970241972,0.755,1930.2,1930.1,5.5]
[1741970242275,10.36132,1930.3,1930.1,5.5]
[1741970242441,5.18081,1930.2,1930.1,5.5]
[1741970242843,5.18055,1930.3,1930.1,5.5]
[1741970243271,10.3613,1930.3,1930.1,5.5]
[1741970244299,5.18081,1930.2,1929.8,5.96204]
[1741970244796,5.18089,1930.2,1929.8,5.96204]
[1741970245166,10.36195,1930.2,1929.8,5.96204]
[1741970245374,5.18119,1930.1,1929.7,5.182]
[1741970245580,5.18137,1930.0,1929.7,5.182]
[1741970245793,5.18137,1930.0,1929.6,5.99374]
[1741970246099,5.18137,1930.0,1929.5,5.5]
[1741970246100,5.18174,1929.9,1929.5,5.5]
[1741970246451,5.18229,1929.7,1929.4,0.7804]
[1741970246686,10.36466,1929.7,1929.2,16.63444]
[1741970246893,10.36457,1929.7,1929.3,5.18312]
[1741970247105,5.18189,1929.8,1929.2,11.45097]
[1741970247458,5.95322,1929.7,1929.2,6.2676]
[1741970247660,5.18256,1929.6,1929.2,6.2676]
[1741970247963,5.18287,1929.5,1929.2,5.5]
[1741970248367,5.18275,1929.5,1929.2,5.5]
[1741970248965,5.18269,1929.5,1929.2,5.5]
[1741970249698,5.18243,1929.6,1929.2,5.5]
[1741970249906,5.18243,1929.6,1929.2,10.68347]
[1741970250198,5.18243,1929.6,1929.2,5.18347]
[1741970250399,0.38380136,1930.0,1929.4,4.10631293]
[1741970250587,0.38380136,1930.0,1929.7,5.18211]
[1741970250988,5.458,1930.1,1929.7,5.18201]
[1741970251189,5.458,1930.1,1929.8,6.493471]
[1741970251393,6.00773,1930.5,1930.0,5.18122]
[1741970251610,5.458,1930.3,1929.9,10.3632]
[1741970251790,5.458,1930.3,1930.0,5.18131]
[1741970252326,5.93195,1930.8,1930.2,0.8085]
[1741970252496,10.63817,1930.5,1930.0,5.98963]
[1741970252729,5.18046,1930.4,1930.0,5.98963]
[1741970253219,5.458,1930.5,1930.1,5.18098]
[1741970253411,5.458,1930.5,1930.2,5.18069]
[1741970253781,5.18039,1930.4,1930.0,5.98967]
[1741970253981,5.18039,1930.4,1930.0,6.588637]
[1741970254318,5.18055,1930.3,1930.0,1.407467]
[1741970254497,5.458,1930.5,1930.0,5.98975]
[1741970254705,5.458,1930.5,1930.2,5.1807]
[1741970254885,3.458,1930.5,1930.2,5.1807]
[1741970255616,3.458,1930.5,1930.2,5.18065]
[1741970255994,3.458,1930.5,1930.2,5.18062]
[1741970256179,5.17984,1930.6,1930.2,6.216787]
[1741970256384,3.7527,1930.8,1930.4,5.18024]
[1741970256385,11.38991,1930.8,1930.4,5.18024]
[1741970256780,5.17862,1931.1,1930.7,5.17944]
[1741970256781,5.17856,1931.1,1930.7,5.17944]
[1741970257029,5.17879,1931.0,1930.6,5.17969]
[1741970257582,0.8269,1931.2,1930.7,5.17946]
[1741970257787,5.458,1931.3,1930.7,1.31812534]
[1741970258029,10.63604,1931.3,1930.8,5.179]
[1741970258324,10.63604,1931.3,1930.8,10.679]
[1741970258634,10.63604,1931.3,1930.9,5.17872]
[1741970258779,5.458,1931.3,1931.0,5.17866]
[1741970259008,10.63596,1931.3,1930.9,5.17888]
[1741970259206,5.17815,1931.2,1930.8,10.67913]
[1741970259435,5.17815,1931.2,1930.8,17.57583953]
[1741970259608,5.17796,1931.3,1930.9,5.1789]
[1741970260238,5.17796,1931.3,1930.9,5.17881]
[1741970260443,0.8174,1931.4,1931.0,5.17851]
[1741970260740,11.4521,1931.4,1931.0,5.17851]
[1741970260944,5.17788,1931.3,1931.0,5.17851]
[1741970261664,5.17788,1931.3,1930.9,5.17881]
[1741970261947,10.356,1931.3,1930.9,5.17881]
[1741970262148,10.356,1931.3,1930.8,7.21766953]
[1741970262149,5.17822,1931.2,1930.8,5.5]
[1741970262337,10.35715,1931.1,1930.8,5.5]
[1741970262709,5.9901,1931.0,1930.8,5.5]
[1741970262912,5.17893,1930.9,1930.8,5.5]
[1741970263112,5.17893,1930.9,1930.5,5.17992]
[1741970263113,5.17967,1930.7,1930.3,10.68047]
[1741970263341,15.81403,1930.9,1930.5,5.17984]
[1741970263642,5.17925,1930.8,1930.4,5.18016]
[1741970264138,10.63507,1930.9,1930.5,5.17998]
[1741970264463,5.456,1930.9,1930.5,5.17992]
[1741970264764,5.456,1930.9,1930.6,5.17963]
[1741970264947,5.456,1930.9,1930.7,5.17936]
[1741970265142,5.456,1930.9,1930.6,5.17963]
[1741970265320,5.456,1930.9,1930.6,10.877223]
[1741970265639,0.8113,1931.0,1930.7,5.17932]
[1741970265839,5.99001,1931.0,1930.6,11.644763]
[1741970266043,5.17842,1931.1,1930.7,5.17926]
[1741970266611,11.39163,1931.2,1930.8,5.1791]
[1741970268368,5.17904,1930.9,1930.6,0.517963]
[1741970268522,5.17939,1930.8,1930.4,5.9478]
[1741970269026,5.17959,1930.7,1930.3,12.4495727]
[1741970269229,5.17977,1930.6,1930.3,5.5]
[1741970269745,15.8142,1930.7,1930.3,10.6803]
[1741970269970,10.35967,1930.6,1930.3,5.5]
[1741970270269,5.17976,1930.6,1930.2,5.94825]
[1741970270432,5.17976,1930.6,1930.3,5.18052]
[1741970270750,5.455,1930.7,1930.3,5.18029]
[1741970270919,5.455,1930.7,1930.3,5.18032]
[1741970271117,15.8142,1930.7,1930.3,5.18032]
[1741970271416,10.63455,1930.7,1930.3,5.18032]
[1741970271634,5.17976,1930.6,1930.2,6.77329823]
[1741970271833,5.17976,1930.6,1930.2,6.77320823]
[1741970272362,5.17976,1930.6,1930.2,5.94831]
[1741970272949,5.17976,1930.6,1930.2,5.94823]
[1741970273147,5.18046,1930.4,1930.0,0.8117]
[1741970273321,5.18063,1930.3,1929.9,10.68153]
[1741970273664,11.17264,1930.2,1929.8,5.18186]
[1741970273960,5.18145,1930.0,1929.5,5.18267]
[1741970274249,5.99249,1929.9,1929.5,5.18267]
[1741970274418,11.1743,1929.9,1929.5,5.18267]
[1741970274618,5.18189,1929.8,1929.4,11.43825]
[1741970274818,5.99233,1929.9,1929.4,11.826675]
[1741970275018,0.8107,1929.9,1929.6,5.18228]
[1741970275216,5.99231,1929.9,1929.5,10.36518]
[1741970275459,0.8107,1929.9,1929.6,5.18215]
[1741970275625,0.8107,1929.9,1929.7,5.18202]
[1741970275826,0.8107,1929.9,1929.7,11.400407]
[1741970276016,3.7983,1930.4,1930.1,5.18097]
[1741970276334,10.63576,1930.3,1929.9,5.1816]
[1741970276727,5.18084,1930.2,1929.9,5.1816]
[1741970276933,5.18084,1930.2,1929.8,5.18188]
[1741970277146,5.18084,1930.2,1929.8,5.18171]
[1741970277354,5.455,1930.3,1929.7,6.536417]
[1741970277550,5.455,1930.3,1929.9,5.18144]
[1741970277855,10.36181,1930.2,1929.8,5.18182]
[1741970278060,5.18081,1930.2,1929.8,5.18182]
[1741970278234,12.596972,1930.3,1929.9,5.18144]
[1741970278429,17.777692,1930.3,1929.9,5.18144]
[1741970278642,12.596972,1930.3,1929.9,5.18144]
[1741970278829,12.596972,1930.3,1929.7,6.536417]
[1741970279027,5.18094,1930.2,1929.8,5.18179]
[1741970279230,5.18116,1930.1,1929.7,11.718497]
[1741970279449,5.18116,1930.1,1929.8,5.18187]
[1741970279650,10.36183,1930.2,1929.8,5.18187]
[1741970280059,5.18084,1930.2,1929.8,5.18187]
[1741970280257,0.7983,1930.4,1929.8,1.6900367]
[1741970280445,6.2437,1930.6,1929.9,0.05181378]
[1741970280624,11.42346,1930.6,1930.2,5.18072]
[1741970281055,6.2437,1930.6,1930.2,5.18072]
[1741970281254,6.2437,1930.6,1930.3,5.1804]
[1741970281431,11.42359,1930.6,1930.2,5.18072]
[1741970282080,6.2437,1930.6,1930.4,5.18008]
[1741970282232,6.2181,1930.9,1930.3,6.33960517]
[1741970282546,6.2181,1930.9,1930.6,5.17964]
[1741970282739,5.455,1930.9,1930.7,5.1793]
[1741970282940,0.8168,1931.3,1930.8,5.1792]
[1741970283141,5.17815,1931.2,1930.8,5.17918]
[1741970283742,5.17815,1931.2,1930.8,5.17909]
[1741970284147,10.35701,1931.1,1930.7,5.17944]
[1741970284344,5.1784,1931.1,1930.7,6.765356]
[1741970284563,5.99593,1930.9,1930.4,5.99017]
[1741970284763,5.17947,1930.7,1930.4,5.18023]
[1741970284965,5.17947,1930.7,1930.3,5.5]
[1741970285138,5.17954,1930.7,1930.3,10.68043]
[1741970285335,5.17986,1930.6,1930.2,7.032149]
[1741970285535,0.82,1930.4,1930.0,5.99052]
[1741970285771,6.0004,1930.4,1930.0,5.99052]
[1741970286349,0.7984,1930.6,1930.1,0.05181025]
[1741970286546,5.455,1930.8,1930.4,5.18013]
[1741970286749,10.63434,1930.8,1930.4,5.18016]
[1741970286946,10.63434,1930.8,1930.3,5.18051]
[1741970287283,6.598274,1930.8,1930.1,5.5]
[1741970287572,5.455,1930.8,1930.6,5.17964]
[1741970287898,5.455,1930.8,1930.6,5.1796]
[1741970288242,5.455,1930.8,1930.6,10.35922]
[1741970288440,5.455,1930.8,1930.6,5.1796]
[1741970288643,5.455,1930.8,1930.3,5.18051]
[1741970288947,0.5455,1930.7,1930.4,5.18024]
[1741970289152,5.17988,1930.6,1930.2,5.1808]
[1741970289454,0.7535,1930.5,1930.2,5.1808]
[1741970289651,5.18037,1930.4,1930.0,5.18113]
[1741970289972,5.18063,1930.3,1929.9,5.18154]
[1741970290313,0.8216,1930.1,1929.8,5.18185]
[1741970290947,0.8216,1930.1,1929.8,10.36349]
[1741970291575,0.8216,1930.1,1929.8,5.18164]
[1741970291976,0.8216,1930.1,1929.9,5.18155]
[1741970292154,0.8216,1930.1,1929.9,5.18149]
[1741970292349,5.454,1930.3,1930.0,5.18124]
[1741970292765,5.454,1930.3,1930.1,5.18104]
[1741970293185,5.454,1930.3,1930.0,5.18124]
[1741970293491,3.0,1930.2,1929.6,5.18242]
[1741970293798,3.0,1930.2,1929.5,5.18254]
[1741970293799,0.7782,1930.1,1929.5,5.18254]
[1741970293967,0.7782,1930.1,1929.6,5.700564]
[1741970294169,5.18136,1930.0,1929.6,5.700564]
[1741970294698,5.95953,1930.1,1929.7,5.18199]
[1741970294892,0.7782,1930.1,1929.8,5.18183]
[1741970295596,5.95929,1930.1,1929.7,5.93899]
[1741970295897,5.95929,1930.1,1929.7,5.18199]
[1741970296095,5.18146,1930.0,1929.6,5.700654]
[1741970296295,5.18146,1930.0,1929.6,5.1824]
[1741970296489,5.18161,1929.9,1929.5,5.18264]
[1741970296999,5.18161,1929.9,1929.4,10.36588]
[1741970297179,5.18161,1929.9,1929.5,5.18262]
[1741970297379,5.18146,1930.0,1929.5,5.18244]
[1741970297593,10.36291,1930.0,1929.6,5.18236]
[1741970297794,11.5884126,1930.0,1929.6,5.18236]
[1741970298099,11.5884126,1930.0,1929.5,5.18244]
[1741970298493,11.5884626,1930.0,1929.5,5.18244]
[1741970298669,5.95933,1930.1,1929.7,5.18194]
[1741970298870,11.41333,1930.1,1929.7,5.18194]
[1741970299094,6.21452657,1930.1,1929.8,5.18186]
[1741970299299,11.39561657,1930.1,1929.7,5.18194]
[1741970299707,6.21452657,1930.1,1930.0,5.18134]
[1741970299910,5.454,1930.1,1930.0,5.18134]
[1741970300081,5.454,1930.1,1929.9,5.1816]
[1741970300082,5.454,1930.4,1930.2,5.18074]
[1741970301279,10.63491,1930.6,1930.2,5.18074]
[1741970301781,10.63491,1930.6,1930.3,5.18052]
[1741970301782,5.455,1930.6,1930.3,5.18052]
[1741970301985,4.02789812,1931.5,1930.5,5.18]
[1741970302181,0.8145,1931.0,1930.5,5.18]
[1741970302384,5.455,1930.9,1930.5,10.35974]
[1741970302581,5.455,1930.9,1930.5,5.17974]
[1741970302781,0.8145,1931.0,1930.8,5.17901]
[1741970303089,0.7885,1931.2,1931.0,5.17855]
[1741970303292,0.7885,1931.2,1930.8,5.17897]
[1741970303613,0.7885,1931.2,1930.9,5.17882]